[Event "Late-Titled-Tuesday-Blitz-October-03-2023"]
[Site "Chess.com"]
[Date "2023.10.03"]
[Round "2"]
[White "louis198"]
[Black "nihalsarin"]
[Result "0-1"]
[WhiteElo "2617"]
[BlackElo "3066"]
[TimeControl "180+1"]
[EndTime "14:12:25 PDT"]
[Termination "nihalsarin won by resignation"]

1. d4 {[%clk 0:02:55.7]} 1... a6 {[%clk 0:03:00.3]} 2. c4 {[%clk 0:02:55.4]}
2... b5 {[%clk 0:02:59.3]} 3. e3 {[%clk 0:02:55.3]} 3... Bb7 {[%clk 0:02:59]} 4.
Nf3 {[%clk 0:02:55.7]} 4... bxc4 {[%clk 0:02:57.6]} 5. Bxc4 {[%clk 0:02:55.4]}
5... e6 {[%clk 0:02:58.4]} 6. O-O {[%clk 0:02:55.4]} 6... Nf6 {[%clk 0:02:59.1]}
7. a4 {[%clk 0:02:55.5]} 7... d5 {[%clk 0:02:58.2]} 8. Bd3 {[%clk 0:02:55.2]}
8... c5 {[%clk 0:02:58.9]} 9. dxc5 {[%clk 0:02:51.4]} 9... Bxc5 {[%clk
0:02:59.8]} 10. Bd2 {[%clk 0:02:51.1]} 10... Nc6 {[%clk 0:02:59.7]} 11. Qe2
{[%clk 0:02:49.3]} 11... O-O {[%clk 0:02:59.4]} 12. Rc1 {[%clk 0:02:49.3]} 12...
Qe7 {[%clk 0:02:59.8]} 13. Bc3 {[%clk 0:02:44.4]} 13... Bd6 {[%clk 0:02:55.7]}
14. Nbd2 {[%clk 0:02:39]} 14... e5 {[%clk 0:02:56]} 15. Bf5 {[%clk 0:02:35.6]}
15... g6 {[%clk 0:02:55.7]} 16. Bh3 {[%clk 0:02:35.8]} 16... Rfe8 {[%clk
0:02:54.2]} 17. Nb3 {[%clk 0:02:34.8]} 17... Nh5 {[%clk 0:02:48.6]} 18. Ba5
{[%clk 0:02:12.4]} 18... d4 {[%clk 0:02:41.8]} 19. exd4 {[%clk 0:02:11.8]} 19...
Nf4 {[%clk 0:02:40.1]} 20. Qf1 {[%clk 0:02:04.6]} 20... Nxh3+ {[%clk 0:02:39]}
21. gxh3 {[%clk 0:02:04.7]} 21... Nxa5 {[%clk 0:02:39.8]} 22. Nbd2 {[%clk
0:01:54.6]} 22... e4 {[%clk 0:02:35.7]} 23. Ne5 {[%clk 0:01:48.3]} 23... Bxe5
{[%clk 0:02:34]} 0-1

[Event "Late-Titled-Tuesday-Blitz-October-03-2023"]
[Site "Chess.com"]
[Date "2023.10.03"]
[Round "2"]
[White "PapaieDudu"]
[Black "elcala"]
[Result "1-0"]
[WhiteElo "2383"]
[BlackElo "1718"]
[TimeControl "180+1"]
[EndTime "14:12:31 PDT"]
[Termination "PapaieDudu won by checkmate"]

1. e4 {[%clk 0:03:00.9]} 1... e5 {[%clk 0:02:46.2]} 2. f4 {[%clk 0:02:58.8]}
2... d6 {[%clk 0:02:42.9]} 3. Nf3 {[%clk 0:02:58.1]} 3... Nc6 {[%clk 0:02:41.5]}
4. Bc4 {[%clk 0:02:57.7]} 4... h6 {[%clk 0:02:38.4]} 5. d4 {[%clk 0:02:51.3]}
5... exd4 {[%clk 0:02:35.8]} 6. Nxd4 {[%clk 0:02:49.8]} 6... Nxd4 {[%clk
0:02:35.8]} 7. Qxd4 {[%clk 0:02:50.3]} 7... Qf6 {[%clk 0:02:31.1]} 8. e5 {[%clk
0:02:48.1]} 8... dxe5 {[%clk 0:02:31.4]} 9. fxe5 {[%clk 0:02:48.5]} 9... Qe7
{[%clk 0:02:28.7]} 10. O-O {[%clk 0:02:47.8]} 10... Be6 {[%clk 0:02:28.4]} 11.
Be3 {[%clk 0:02:24.5]} 11... Bxc4 {[%clk 0:02:24]} 12. Qxc4 {[%clk 0:02:24.3]}
12... c6 {[%clk 0:02:13.7]} 13. Nc3 {[%clk 0:02:20.2]} 13... O-O-O {[%clk
0:01:55.2]} 14. Rxf7 {[%clk 0:02:18.6]} 14... Qxe5 {[%clk 0:01:51]} 15. Qg4+
{[%clk 0:02:16.7]} 15... Kb8 {[%clk 0:01:43.9]} 16. Bf4 {[%clk 0:02:16.7]} 16...
Bc5+ {[%clk 0:01:41.7]} 17. Kh1 {[%clk 0:02:17.3]} 17... Qxf4 {[%clk 0:01:35.7]}
18. Qxf4+ {[%clk 0:02:17.8]} 18... Bd6 {[%clk 0:01:35.3]} 19. Rd1 {[%clk
0:02:17.4]} 19... Bxf4 {[%clk 0:01:33.5]} 20. Rxd8# {[%clk 0:02:18]} 1-0

[Event "Late-Titled-Tuesday-Blitz-October-03-2023"]
[Site "Chess.com"]
[Date "2023.10.03"]
[Round "2"]
[White "AlivodicDario"]
[Black "GAusal"]
[Result "1-0"]
[WhiteElo "2498"]
[BlackElo "2278"]
[TimeControl "180+1"]
[EndTime "14:12:48 PDT"]
[Termination "AlivodicDario won by resignation"]

1. d4 {[%clk 0:03:00.9]} 1... d5 {[%clk 0:02:33.5]} 2. c4 {[%clk 0:03:00.2]}
2... c6 {[%clk 0:02:33.6]} 3. Nf3 {[%clk 0:03:00.3]} 3... dxc4 {[%clk
0:02:33.5]} 4. a4 {[%clk 0:02:55.5]} 4... Nf6 {[%clk 0:02:32.3]} 5. Nc3 {[%clk
0:02:55.7]} 5... Bf5 {[%clk 0:02:30.5]} 6. Ne5 {[%clk 0:02:55.2]} 6... e6 {[%clk
0:02:24.6]} 7. f3 {[%clk 0:02:54]} 7... Bd6 {[%clk 0:02:21.6]} 8. e4 {[%clk
0:02:47.6]} 8... Bg6 {[%clk 0:02:20.8]} 9. Nxg6 {[%clk 0:02:43.6]} 9... hxg6
{[%clk 0:02:19.6]} 10. e5 {[%clk 0:02:44.3]} 10... Bxe5 {[%clk 0:01:55.5]} 11.
dxe5 {[%clk 0:02:44.5]} 11... Qxd1+ {[%clk 0:01:55]} 12. Kxd1 {[%clk 0:02:40.3]}
12... Nd5 {[%clk 0:01:54.7]} 13. Bxc4 {[%clk 0:02:39.8]} 13... Nxc3+ {[%clk
0:01:54.5]} 14. bxc3 {[%clk 0:02:39]} 14... Nd7 {[%clk 0:01:54]} 15. f4 {[%clk
0:02:35.8]} 15... Nc5 {[%clk 0:01:48.4]} 16. Be3 {[%clk 0:02:33.6]} 16... Ne4
{[%clk 0:01:46.9]} 17. Kc2 {[%clk 0:02:25.4]} 17... c5 {[%clk 0:01:32.9]} 18.
Bd3 {[%clk 0:02:21.4]} 18... f5 {[%clk 0:01:28.7]} 19. exf6 {[%clk 0:02:12.1]}
19... Nxf6 {[%clk 0:01:27.1]} 20. Bxg6+ {[%clk 0:02:12.8]} 20... Ke7 {[%clk
0:01:26.9]} 21. Bxc5+ {[%clk 0:02:12.8]} 1-0

[Event "Late-Titled-Tuesday-Blitz-October-03-2023"]
[Site "Chess.com"]
[Date "2023.10.03"]
[Round "2"]
[White "NMJeevanK"]
[Black "baki83"]
[Result "0-1"]
[WhiteElo "2535"]
[BlackElo "2824"]
[TimeControl "180+1"]
[EndTime "14:13:50 PDT"]
[Termination "baki83 won by resignation"]

1. e4 {[%clk 0:03:00.9]} 1... c5 {[%clk 0:02:57]} 2. Nc3 {[%clk 0:03:01.2]} 2...
Nc6 {[%clk 0:02:56.9]} 3. Bb5 {[%clk 0:03:01.4]} 3... Nd4 {[%clk 0:02:56.7]} 4.
Bc4 {[%clk 0:03:02.1]} 4... e6 {[%clk 0:02:55.3]} 5. Nge2 {[%clk 0:03:02.4]}
5... Ne7 {[%clk 0:02:55.4]} 6. Nxd4 {[%clk 0:03:00.8]} 6... cxd4 {[%clk
0:02:56.3]} 7. Ne2 {[%clk 0:03:01.3]} 7... d5 {[%clk 0:02:55.8]} 8. exd5 {[%clk
0:02:48]} 8... Nxd5 {[%clk 0:02:56.1]} 9. d3 {[%clk 0:02:39.1]} 9... Bc5 {[%clk
0:02:45.2]} 10. O-O {[%clk 0:02:35.5]} 10... O-O {[%clk 0:02:45]} 11. a3 {[%clk
0:02:34]} 11... b6 {[%clk 0:02:39]} 12. b4 {[%clk 0:02:31.7]} 12... Be7 {[%clk
0:02:38.3]} 13. Nxd4 {[%clk 0:02:24.9]} 13... Bb7 {[%clk 0:02:34.7]} 14. Bb2
{[%clk 0:02:20.3]} 14... Nf4 {[%clk 0:02:34.3]} 15. Qg4 {[%clk 0:02:09]} 15...
e5 {[%clk 0:02:18.2]} 16. Nf5 {[%clk 0:02:03.3]} 16... Bf6 {[%clk 0:02:17.3]}
17. f3 {[%clk 0:01:54.6]} 17... h5 {[%clk 0:02:12.6]} 18. Nh6+ {[%clk
0:01:31.6]} 18... Kh7 {[%clk 0:02:12.5]} 19. Qf5+ {[%clk 0:00:55.2]} 19... g6
{[%clk 0:02:11.9]} 20. Qxf4 {[%clk 0:00:24.9]} 20... exf4 {[%clk 0:02:10.8]} 21.
Nxf7 {[%clk 0:00:25]} 21... Rxf7 {[%clk 0:02:10.2]} 0-1

[Event "Late-Titled-Tuesday-Blitz-October-03-2023"]
[Site "Chess.com"]
[Date "2023.10.03"]
[Round "2"]
[White "JoakimVonAnd"]
[Black "Nick12772"]
[Result "1-0"]
[WhiteElo "2716"]
[BlackElo "2364"]
[TimeControl "180+1"]
[EndTime "14:13:58 PDT"]
[Termination "JoakimVonAnd won by resignation"]

1. c4 {[%clk 0:02:55.8]} 1... Nf6 {[%clk 0:02:59.3]} 2. Nf3 {[%clk 0:02:55.8]}
2... g6 {[%clk 0:02:59.3]} 3. Nc3 {[%clk 0:02:54.5]} 3... d5 {[%clk 0:02:58.9]}
4. d4 {[%clk 0:02:53.8]} 4... Bg7 {[%clk 0:02:58.6]} 5. Bf4 {[%clk 0:02:50.6]}
5... O-O {[%clk 0:02:58.5]} 6. e3 {[%clk 0:02:51.2]} 6... c5 {[%clk 0:02:58.6]}
7. dxc5 {[%clk 0:02:51.8]} 7... Qa5 {[%clk 0:02:59]} 8. Rc1 {[%clk 0:02:52.3]}
8... dxc4 {[%clk 0:02:59.4]} 9. Bxc4 {[%clk 0:02:52.9]} 9... Qxc5 {[%clk
0:03:00.1]} 10. Qb3 {[%clk 0:02:51.7]} 10... Nc6 {[%clk 0:02:50.2]} 11. Qb5
{[%clk 0:02:44.1]} 11... Qxb5 {[%clk 0:02:47.9]} 12. Nxb5 {[%clk 0:02:45]} 12...
Bd7 {[%clk 0:02:47.2]} 13. h3 {[%clk 0:02:41.8]} 13... Rac8 {[%clk 0:02:42.6]}
14. O-O {[%clk 0:02:41.1]} 14... Na5 {[%clk 0:02:20.2]} 15. Be2 {[%clk
0:02:38.1]} 15... a6 {[%clk 0:02:17.7]} 16. Nc3 {[%clk 0:02:26]} 16... Nc4
{[%clk 0:02:17.7]} 17. b3 {[%clk 0:02:25.2]} 17... Nb6 {[%clk 0:02:06.8]} 18.
Ne5 {[%clk 0:02:25]} 18... Bc6 {[%clk 0:01:51.3]} 19. Nxc6 {[%clk 0:02:24.2]}
19... Rxc6 {[%clk 0:01:51.9]} 20. Bf3 {[%clk 0:02:24.2]} 20... Nh5 {[%clk
0:01:22.8]} 21. Bxc6 {[%clk 0:02:19.6]} 21... Nxf4 {[%clk 0:01:23]} 22. exf4
{[%clk 0:02:13]} 22... bxc6 {[%clk 0:01:20.2]} 23. Ne4 {[%clk 0:02:11.2]} 23...
Nd5 {[%clk 0:01:19]} 24. g3 {[%clk 0:02:11]} 24... Rc8 {[%clk 0:01:14.7]} 25.
Rc4 {[%clk 0:02:10.5]} 25... f5 {[%clk 0:01:08.7]} 26. Nc5 {[%clk 0:02:08.2]}
26... Nc3 {[%clk 0:01:09]} 27. a4 {[%clk 0:02:04.1]} 27... Ne2+ {[%clk
0:01:05.1]} 28. Kg2 {[%clk 0:02:03.8]} 28... Nd4 {[%clk 0:01:06]} 29. Rd1 {[%clk
0:02:01.7]} 29... Rb8 {[%clk 0:00:51.5]} 30. Rcxd4 {[%clk 0:01:57.1]} 30... Bxd4
{[%clk 0:00:52.4]} 31. Rxd4 {[%clk 0:01:57.5]} 1-0

[Event "Late-Titled-Tuesday-Blitz-October-03-2023"]
[Site "Chess.com"]
[Date "2023.10.03"]
[Round "2"]
[White "chessisveryfun1264"]
[Black "sergoy"]
[Result "0-1"]
[WhiteElo "2602"]
[BlackElo "3007"]
[TimeControl "180+1"]
[EndTime "14:14:17 PDT"]
[Termination "sergoy won by resignation"]

1. Nf3 {[%clk 0:03:00.9]} 1... d5 {[%clk 0:02:59.9]} 2. g3 {[%clk 0:03:00.7]}
2... g6 {[%clk 0:03:00.6]} 3. Bg2 {[%clk 0:03:01.5]} 3... Bg7 {[%clk 0:03:01.1]}
4. c4 {[%clk 0:03:01.1]} 4... c6 {[%clk 0:03:00.1]} 5. O-O {[%clk 0:03:01.2]}
5... e5 {[%clk 0:03:00.3]} 6. cxd5 {[%clk 0:03:00.6]} 6... cxd5 {[%clk
0:03:01.2]} 7. e4 {[%clk 0:02:58.7]} 7... dxe4 {[%clk 0:02:57.6]} 8. Qa4+ {[%clk
0:02:56.8]} 8... Nc6 {[%clk 0:02:57.6]} 9. Qxe4 {[%clk 0:02:56.6]} 9... Nf6
{[%clk 0:02:58]} 10. Qa4 {[%clk 0:02:56.1]} 10... O-O {[%clk 0:02:57.1]} 11. Nc3
{[%clk 0:02:56.1]} 11... Bf5 {[%clk 0:02:55.8]} 12. Rd1 {[%clk 0:02:53.4]} 12...
Nd7 {[%clk 0:02:41.9]} 13. Qb5 {[%clk 0:02:23.1]} 13... Nb6 {[%clk 0:02:35.6]}
14. b3 {[%clk 0:02:02.6]} 14... a6 {[%clk 0:02:34.4]} 15. Qc5 {[%clk 0:02:01.3]}
15... Rc8 {[%clk 0:02:25]} 16. Qe3 {[%clk 0:01:46]} 16... Nd4 {[%clk 0:02:22.8]}
17. Ne1 {[%clk 0:01:37.1]} 17... Bg4 {[%clk 0:02:18.6]} 18. f3 {[%clk
0:01:31.1]} 18... Bf5 {[%clk 0:02:17.7]} 19. Ba3 {[%clk 0:01:29.7]} 19... Re8
{[%clk 0:02:18.2]} 20. Rac1 {[%clk 0:01:28.2]} 20... h5 {[%clk 0:02:17.4]} 21.
Ne4 {[%clk 0:01:11.1]} 21... Nd5 {[%clk 0:02:12.3]} 22. Qf2 {[%clk 0:01:04.6]}
22... Bxe4 {[%clk 0:02:05.6]} 23. fxe4 {[%clk 0:01:03.3]} 23... Nf6 {[%clk
0:02:05.7]} 24. d3 {[%clk 0:00:57.9]} 24... Ng4 {[%clk 0:02:02.2]} 25. Rxc8
{[%clk 0:00:49.4]} 25... Qxc8 {[%clk 0:02:03.1]} 26. Qb2 {[%clk 0:00:42.6]}
26... Bh6 {[%clk 0:01:57.3]} 27. h3 {[%clk 0:00:41]} 27... Ne3 {[%clk
0:01:54.9]} 28. Rc1 {[%clk 0:00:41.2]} 28... Qxc1 {[%clk 0:01:53.9]} 29. Qxc1
{[%clk 0:00:37.8]} 29... Ne2+ {[%clk 0:01:54.5]} 30. Kf2 {[%clk 0:00:37.7]}
30... Nxc1 {[%clk 0:01:55.4]} 0-1

[Event "Late-Titled-Tuesday-Blitz-October-03-2023"]
[Site "Chess.com"]
[Date "2023.10.03"]
[Round "2"]
[White "chessmoo"]
[Black "ritanovikova"]
[Result "1-0"]
[WhiteElo "2450"]
[BlackElo "2184"]
[TimeControl "180+1"]
[EndTime "14:14:21 PDT"]
[Termination "chessmoo won by checkmate"]

1. c4 {[%clk 0:03:00.9]} 1... g6 {[%clk 0:02:58.1]} 2. g3 {[%clk 0:03:00.3]}
2... Bg7 {[%clk 0:02:57.8]} 3. Bg2 {[%clk 0:02:59.8]} 3... d6 {[%clk 0:02:58.3]}
4. Nc3 {[%clk 0:02:58.3]} 4... Nf6 {[%clk 0:02:56.7]} 5. d4 {[%clk 0:02:57.8]}
5... O-O {[%clk 0:02:57.2]} 6. h3 {[%clk 0:02:57.8]} 6... e5 {[%clk 0:02:55.3]}
7. Nf3 {[%clk 0:02:50.1]} 7... Nc6 {[%clk 0:02:52.5]} 8. Be3 {[%clk 0:02:49.5]}
8... exd4 {[%clk 0:02:52.2]} 9. Nxd4 {[%clk 0:02:50.4]} 9... Nxd4 {[%clk
0:02:53.1]} 10. Bxd4 {[%clk 0:02:50.7]} 10... c6 {[%clk 0:02:50.4]} 11. O-O
{[%clk 0:02:48]} 11... Qc7 {[%clk 0:02:50.2]} 12. Rc1 {[%clk 0:02:43.1]} 12...
Be6 {[%clk 0:02:50.2]} 13. b3 {[%clk 0:02:41.4]} 13... Qd7 {[%clk 0:02:47.3]}
14. Kh2 {[%clk 0:02:40.4]} 14... d5 {[%clk 0:02:46.7]} 15. cxd5 {[%clk
0:02:28.8]} 15... Nxd5 {[%clk 0:02:43.1]} 16. Bxg7 {[%clk 0:02:28]} 16... Kxg7
{[%clk 0:02:43.5]} 17. Nxd5 {[%clk 0:02:19.9]} 17... cxd5 {[%clk 0:02:43.3]} 18.
Qd4+ {[%clk 0:02:17]} 18... f6 {[%clk 0:02:41.3]} 19. Rfd1 {[%clk 0:02:10.3]}
19... Rfd8 {[%clk 0:02:40.9]} 20. Rc5 {[%clk 0:02:02.8]} 20... b6 {[%clk
0:02:39.5]} 21. Rc3 {[%clk 0:01:53.8]} 21... Rac8 {[%clk 0:02:31.6]} 22. Rxc8
{[%clk 0:01:52.9]} 22... Rxc8 {[%clk 0:02:32]} 23. Rd2 {[%clk 0:01:42.6]} 23...
Rc5 {[%clk 0:02:26.4]} 24. e4 {[%clk 0:01:29]} 24... Qc7 {[%clk 0:02:01.5]} 25.
exd5 {[%clk 0:01:25.9]} 25... Bd7 {[%clk 0:02:00.6]} 26. d6 {[%clk 0:01:22.9]}
26... Qd8 {[%clk 0:02:01]} 27. Re2 {[%clk 0:01:21.3]} 27... g5 {[%clk
0:01:56.5]} 28. Re7+ {[%clk 0:01:19.1]} 28... Kg6 {[%clk 0:01:56.7]} 29. Be4+
{[%clk 0:01:14]} 29... Bf5 {[%clk 0:01:54.8]} 30. g4 {[%clk 0:01:05.4]} 30...
Bxe4 {[%clk 0:01:42]} 31. Qxe4+ {[%clk 0:01:06.3]} 31... f5 {[%clk 0:01:41.8]}
32. Qe6# {[%clk 0:01:04.3]} 1-0

[Event "Late-Titled-Tuesday-Blitz-October-03-2023"]
[Site "Chess.com"]
[Date "2023.10.03"]
[Round "2"]
[White "Lennis93"]
[Black "littlepinkyboy"]
[Result "1-0"]
[WhiteElo "2712"]
[BlackElo "2424"]
[TimeControl "180+1"]
[EndTime "14:14:29 PDT"]
[Termination "Lennis93 won on time"]

1. c4 {[%clk 0:03:00.9]} 1... Nf6 {[%clk 0:02:51.5]} 2. g3 {[%clk 0:03:00.5]}
2... g6 {[%clk 0:02:51.8]} 3. Bg2 {[%clk 0:03:00.8]} 3... Bg7 {[%clk 0:02:52.4]}
4. Nc3 {[%clk 0:03:01]} 4... O-O {[%clk 0:02:52.7]} 5. d3 {[%clk 0:03:01]} 5...
e6 {[%clk 0:02:53.1]} 6. e4 {[%clk 0:02:59.6]} 6... d6 {[%clk 0:02:45]} 7. d4
{[%clk 0:02:58.8]} 7... c5 {[%clk 0:02:32.2]} 8. Nge2 {[%clk 0:02:57.6]} 8...
Nc6 {[%clk 0:02:24.5]} 9. d5 {[%clk 0:02:57]} 9... exd5 {[%clk 0:02:24.1]} 10.
cxd5 {[%clk 0:02:57.1]} 10... Ne7 {[%clk 0:02:16.6]} 11. h3 {[%clk 0:02:56.6]}
11... a6 {[%clk 0:02:15.3]} 12. a4 {[%clk 0:02:55.2]} 12... Nd7 {[%clk
0:02:15.4]} 13. g4 {[%clk 0:02:53.1]} 13... f5 {[%clk 0:02:15.5]} 14. gxf5
{[%clk 0:02:53.3]} 14... gxf5 {[%clk 0:02:15.4]} 15. Nf4 {[%clk 0:02:51.5]}
15... Ne5 {[%clk 0:02:14.7]} 16. Nh5 {[%clk 0:02:50.5]} 16... fxe4 {[%clk
0:02:12.5]} 17. Bxe4 {[%clk 0:02:47.4]} 17... Bf5 {[%clk 0:02:06.1]} 18. Nxg7
{[%clk 0:02:45.7]} 18... Kxg7 {[%clk 0:02:04.9]} 19. Rg1+ {[%clk 0:02:45.2]}
19... N7g6 {[%clk 0:02:05]} 20. Qh5 {[%clk 0:02:45]} 20... Bxe4 {[%clk
0:02:02.5]} 21. Bh6+ {[%clk 0:02:44.7]} 21... Kh8 {[%clk 0:01:55.1]} 22. Nxe4
{[%clk 0:02:44.6]} 22... Nf3+ {[%clk 0:01:50.6]} 23. Kf1 {[%clk 0:02:44.4]}
23... Nxg1 {[%clk 0:01:31]} 24. Bxf8 {[%clk 0:02:43.7]} 24... Qxf8 {[%clk
0:01:31.9]} 25. Ng5 {[%clk 0:02:43.6]} 25... Qg7 {[%clk 0:01:22.1]} 26. Re1
{[%clk 0:02:27.8]} 26... Rg8 {[%clk 0:00:15.8]} 27. h4 {[%clk 0:02:24]} 27... h6
{[%clk 0:00:05.5]} 28. Re6 {[%clk 0:02:22]} 28... Nh3 {[%clk 0:00:01.2]} 29.
Nxh3 {[%clk 0:02:17]} 1-0

[Event "Late-Titled-Tuesday-Blitz-October-03-2023"]
[Site "Chess.com"]
[Date "2023.10.03"]
[Round "2"]
[White "Mesa_1"]
[Black "MarkoPe"]
[Result "1-0"]
[WhiteElo "2617"]
[BlackElo "2348"]
[TimeControl "180+1"]
[EndTime "14:14:35 PDT"]
[Termination "Mesa_1 won by resignation"]

1. Nf3 {[%clk 0:03:00.4]} 1... c6 {[%clk 0:03:00.9]} 2. d4 {[%clk 0:02:57.1]}
2... d6 {[%clk 0:03:01.8]} 3. c4 {[%clk 0:02:57.2]} 3... Nd7 {[%clk 0:03:02.7]}
4. Nc3 {[%clk 0:02:58]} 4... Ngf6 {[%clk 0:03:03.6]} 5. e4 {[%clk 0:02:58.6]}
5... g6 {[%clk 0:03:04.2]} 6. Be2 {[%clk 0:02:59.2]} 6... Bg7 {[%clk 0:03:04.7]}
7. Be3 {[%clk 0:02:58.5]} 7... O-O {[%clk 0:03:05.2]} 8. h3 {[%clk 0:02:56.6]}
8... e5 {[%clk 0:03:05.5]} 9. d5 {[%clk 0:02:56.8]} 9... Qc7 {[%clk 0:03:05.7]}
10. Nd2 {[%clk 0:02:55.4]} 10... a5 {[%clk 0:03:06]} 11. g4 {[%clk 0:02:53.9]}
11... Nc5 {[%clk 0:03:04.5]} 12. b3 {[%clk 0:02:31.9]} 12... Bd7 {[%clk
0:02:55.6]} 13. a3 {[%clk 0:02:24.9]} 13... Ne8 {[%clk 0:02:32.5]} 14. Rg1
{[%clk 0:02:11.4]} 14... Kh8 {[%clk 0:02:27.5]} 15. h4 {[%clk 0:02:07.2]} 15...
f5 {[%clk 0:02:18.4]} 16. gxf5 {[%clk 0:02:08.1]} 16... gxf5 {[%clk 0:02:19]}
17. h5 {[%clk 0:01:57.5]} 17... f4 {[%clk 0:02:17.7]} 18. Bxc5 {[%clk
0:01:57.8]} 18... dxc5 {[%clk 0:02:16.4]} 19. Bg4 {[%clk 0:01:58.5]} 19... Bxg4
{[%clk 0:02:12.6]} 20. Qxg4 {[%clk 0:01:59.4]} 20... Nf6 {[%clk 0:02:13.3]} 21.
Qh3 {[%clk 0:01:55.5]} 21... Bh6 {[%clk 0:02:06.6]} 22. Nf3 {[%clk 0:01:47]}
22... Rg8 {[%clk 0:02:05.1]} 23. Rxg8+ {[%clk 0:01:43]} 23... Rxg8 {[%clk
0:02:04.7]} 24. Qf5 {[%clk 0:01:42.6]} 24... Ng4 {[%clk 0:01:49.6]} 25. Ke2
{[%clk 0:01:23.9]} 25... Rf8 {[%clk 0:01:37.5]} 26. Qxg4 {[%clk 0:01:23]} 26...
Rg8 {[%clk 0:01:20]} 27. Qe6 {[%clk 0:01:20.7]} 1-0

[Event "Late-Titled-Tuesday-Blitz-October-03-2023"]
[Site "Chess.com"]
[Date "2023.10.03"]
[Round "2"]
[White "nicholas_ilic"]
[Black "dennisodessa"]
[Result "0-1"]
[WhiteElo "2228"]
[BlackElo "2473"]
[TimeControl "180+1"]
[EndTime "14:15:01 PDT"]
[Termination "dennisodessa won on time"]

1. e4 {[%clk 0:02:56.5]} 1... e6 {[%clk 0:03:00.9]} 2. d4 {[%clk 0:02:55.8]}
2... d5 {[%clk 0:02:59.7]} 3. e5 {[%clk 0:02:51.2]} 3... c5 {[%clk 0:02:58.2]}
4. c3 {[%clk 0:02:50.9]} 4... Qa5 {[%clk 0:02:58.9]} 5. a3 {[%clk 0:02:45.3]}
5... Bd7 {[%clk 0:02:57.7]} 6. b4 {[%clk 0:02:34.7]} 6... cxb4 {[%clk
0:02:53.5]} 7. cxb4 {[%clk 0:02:32.7]} 7... Bxb4+ {[%clk 0:02:53.8]} 8. Bd2
{[%clk 0:02:33.5]} 8... Bxd2+ {[%clk 0:02:52.6]} 9. Nxd2 {[%clk 0:02:34.4]} 9...
Nc6 {[%clk 0:02:52.6]} 10. Nf3 {[%clk 0:02:35.1]} 10... Nh6 {[%clk 0:02:50.9]}
11. Bd3 {[%clk 0:02:34.2]} 11... O-O {[%clk 0:02:41.1]} 12. O-O {[%clk
0:02:23.1]} 12... f6 {[%clk 0:02:36.2]} 13. Nb3 {[%clk 0:02:16]} 13... Qc7
{[%clk 0:02:32.7]} 14. exf6 {[%clk 0:02:15.2]} 14... Rxf6 {[%clk 0:02:33.6]} 15.
Nc5 {[%clk 0:02:15.5]} 15... Raf8 {[%clk 0:02:29.8]} 16. Rc1 {[%clk 0:02:11]}
16... Ng4 {[%clk 0:02:23.4]} 17. Nxd7 {[%clk 0:02:01.2]} 17... Rxf3 {[%clk
0:01:58.3]} 18. Ne5 {[%clk 0:01:51.3]} 18... Ngxe5 {[%clk 0:01:58.6]} 19. dxe5
{[%clk 0:01:51.3]} 19... R3f4 {[%clk 0:01:39.3]} 20. Re1 {[%clk 0:01:39.7]}
20... Qb6 {[%clk 0:01:31.2]} 0-1

[Event "Late-Titled-Tuesday-Blitz-October-03-2023"]
[Site "Chess.com"]
[Date "2023.10.03"]
[Round "2"]
[White "jcibarra"]
[Black "zajka-molotok"]
[Result "1-0"]
[WhiteElo "2946"]
[BlackElo "2576"]
[TimeControl "180+1"]
[EndTime "14:15:18 PDT"]
[Termination "jcibarra won by resignation"]

1. e4 {[%clk 0:02:56.5]} 1... c6 {[%clk 0:02:59.7]} 2. Nf3 {[%clk 0:02:55.5]}
2... d5 {[%clk 0:03:00.1]} 3. d3 {[%clk 0:02:54.6]} 3... dxe4 {[%clk 0:02:53]}
4. dxe4 {[%clk 0:02:54.1]} 4... Qxd1+ {[%clk 0:02:53.9]} 5. Kxd1 {[%clk
0:02:54.2]} 5... f6 {[%clk 0:02:47.2]} 6. Nfd2 {[%clk 0:02:49.1]} 6... e5 {[%clk
0:02:46.4]} 7. f3 {[%clk 0:02:49.1]} 7... Be6 {[%clk 0:02:43.7]} 8. a4 {[%clk
0:02:48.4]} 8... Bc5 {[%clk 0:02:37.9]} 9. c3 {[%clk 0:02:45.6]} 9... a5 {[%clk
0:02:36.7]} 10. Kc2 {[%clk 0:02:45]} 10... Nd7 {[%clk 0:02:35.2]} 11. Bc4 {[%clk
0:02:43.1]} 11... Kf7 {[%clk 0:02:33.4]} 12. Bxe6+ {[%clk 0:02:37.1]} 12... Kxe6
{[%clk 0:02:34.3]} 13. Nb3 {[%clk 0:02:37.3]} 13... Bb6 {[%clk 0:02:31.5]} 14.
N1d2 {[%clk 0:02:37.5]} 14... Ne7 {[%clk 0:02:28.2]} 15. Nc4 {[%clk 0:02:36.4]}
15... Bc7 {[%clk 0:02:28.3]} 16. Be3 {[%clk 0:02:36.4]} 16... Rhd8 {[%clk
0:02:15.5]} 17. Rhd1 {[%clk 0:02:35.7]} 17... Ng6 {[%clk 0:02:01.6]} 18. Rd2
{[%clk 0:02:31.6]} 18... Ke7 {[%clk 0:01:47.9]} 19. Rad1 {[%clk 0:02:26.1]}
19... Ngf8 {[%clk 0:01:12.8]} 20. Nc5 {[%clk 0:02:18.1]} 20... Nxc5 {[%clk
0:01:05.4]} 21. Bxc5+ {[%clk 0:02:18]} 21... Ke8 {[%clk 0:01:05.6]} 22. Rxd8+
{[%clk 0:02:09.4]} 22... Rxd8 {[%clk 0:01:06.5]} 23. Rxd8+ {[%clk 0:02:09.2]}
23... Bxd8 {[%clk 0:01:06.7]} 24. Nd6+ {[%clk 0:02:09.2]} 24... Kd7 {[%clk
0:01:02.2]} 25. Nxb7 {[%clk 0:02:09.5]} 25... Ne6 {[%clk 0:01:02.2]} 26. Be3
{[%clk 0:02:07.6]} 26... Kc8 {[%clk 0:00:46.9]} 27. Nxd8 {[%clk 0:01:38.9]}
27... Nxd8 {[%clk 0:00:44.6]} 28. Bb6 {[%clk 0:01:39.3]} 28... Nb7 {[%clk
0:00:44.4]} 29. Kd3 {[%clk 0:01:39.2]} 29... Kd7 {[%clk 0:00:40]} 30. b4 {[%clk
0:01:36.5]} 30... c5 {[%clk 0:00:34.8]} 31. b5 {[%clk 0:01:25.3]} 31... Kd6
{[%clk 0:00:31.7]} 32. Kc4 {[%clk 0:01:24]} 32... g6 {[%clk 0:00:26]} 33. g4
{[%clk 0:01:16.7]} 33... h5 {[%clk 0:00:23.8]} 34. gxh5 {[%clk 0:01:13.6]} 34...
gxh5 {[%clk 0:00:24.7]} 35. h4 {[%clk 0:01:13.7]} 1-0